bitfinex-derivatives/quotes_BTCF0:USTF0_20250309
["timestamp","ask_amount","ask_price","bid_price","bid_amount"]
[1741550209398,0.36148,82677.0,82675.0,0.2200773]
[1741550209696,0.4817751,82677.0,82676.0,0.1209758]
[1741550210202,0.4817751,82677.0,82676.0,0.2239758]
[1741550210904,0.5831751,82677.0,82676.0,0.2239758]
[1741550216098,0.5319744,82677.0,82676.0,0.2239758]
[1741550220298,0.5319744,82677.0,82670.0,0.1120918]
[1741550220299,0.5319744,82677.0,82670.0,0.1725837]
[1741550220512,0.5319744,82677.0,82673.0,0.1725775]
[1741550220513,0.1209787,82674.0,82673.0,0.1725775]
[1741550220698,0.2188587,82674.0,82673.0,0.2935553]
[1741550221505,0.01135265,82679.0,82673.0,0.2935553]
[1741550221506,0.01135265,82684.0,82683.0,0.1209656]
[1741550221902,0.120967,82683.0,82682.0,0.1209633]
[1741550222105,0.174967,82683.0,82682.0,0.1054]
[1741550222310,0.1209831,82671.0,82657.0,0.1583412]
[1741550222510,0.1209831,82671.0,82670.0,0.1725846]
[1741550222809,0.213,82691.0,82675.0,0.0604885]
[1741550223001,0.213,82691.0,82685.0,0.3608]
[1741550223204,0.22209688,82691.0,82690.0,0.1209553]
[1741550224006,0.22209688,82691.0,82690.0,0.1727553]
[1741550224614,0.22209688,82691.0,82690.0,0.1849597]
[1741550225899,0.34305078,82691.0,82690.0,0.1849597]
[1741550226800,0.34305078,82691.0,82690.0,0.1727553]
[1741550227007,0.39505078,82691.0,82690.0,0.1727553]
[1741550228507,0.39505078,82691.0,82686.0,0.05]
[1741550228508,0.181487,82667.0,82660.0,0.00132]
[1741550228708,0.1729904,82666.0,82665.0,0.1038]
[1741550228908,0.5337904,82666.0,82665.0,0.1038]
[1741550229302,0.1729904,82666.0,82665.0,0.1038]
[1741550229710,0.5337904,82666.0,82665.0,0.1038]
[1741550230008,0.5880904,82666.0,82665.0,0.1579]
[1741550230213,0.5880904,82666.0,82665.0,0.2788919]
[1741550230416,0.5880904,82666.0,82665.0,0.1579]
[1741550230709,0.2272904,82666.0,82665.0,0.2788919]
[1741550230915,0.5880904,82666.0,82665.0,0.2788919]
[1741550231304,0.052,82666.0,82665.0,0.2788919]
[1741550231506,0.0978,82668.0,82667.0,0.120989]
[1741550231709,0.2187875,82668.0,82667.0,0.120989]
[1741550232811,0.0978,82668.0,82667.0,0.1332925]
[1741550233314,0.0978,82668.0,82667.0,0.120989]
[1741550233315,0.2187875,82668.0,82667.0,0.120989]
[1741550233716,0.0978,82668.0,82665.0,0.2183953]
[1741550233916,0.4817904,82666.0,82665.0,0.1579]
[1741550234219,0.4817904,82666.0,82645.0,0.0605104]
[1741550234220,0.1209919,82665.0,82645.0,0.0605104]
[1741550234415,0.1209919,82665.0,82652.0,0.0497]
[1741550234416,0.1210095,82653.0,82652.0,0.0497]
[1741550234716,0.2187695,82653.0,82652.0,0.1707109]
[1741550235119,0.2187695,82653.0,82652.0,0.2249109]
[1741550235607,0.09776,82653.0,82652.0,0.2249109]
[1741550236205,0.09776,82653.0,82646.0,0.0605096]
[1741550236206,0.1210314,82638.0,82637.0,0.1223105]
[1741550236410,0.1210344,82636.0,82635.0,0.1707329]
[1741550236611,0.09772,82640.0,82639.0,0.12103]
[1741550237012,0.2187485,82640.0,82639.0,0.12103]
[1741550237309,0.2733485,82640.0,82639.0,0.12103]
[1741550238312,0.1210344,82637.0,82636.0,0.1210331]
[1741550238512,0.1210373,82634.0,82633.0,0.3608]
[1741550240219,0.1662178,82636.0,82630.0,0.1210383]
[1741550240220,0.1815658,82631.0,82630.0,0.1210383]
[1741550241121,0.2792858,82631.0,82630.0,0.1210383]
[1741550242121,0.09772,82631.0,82630.0,0.1210383]
[1741550242425,0.2187617,82631.0,82630.0,0.1210383]
[1741550243426,0.09772,82631.0,82630.0,0.1210383]
[1741550243926,0.1210417,82631.0,82630.0,0.1210383]
[1741550245920,0.12091256,82631.0,82630.0,0.1210383]
[1741550247235,0.2122998,82633.0,82630.0,0.1210383]
[1741550247421,0.09768,82633.0,82632.0,0.1210402]
[1741550247622,0.09768,82633.0,82628.0,0.054]
[1741550247623,0.1210344,82636.0,82635.0,0.1210358]
[1741550248025,0.1754344,82636.0,82635.0,0.1210358]
[1741550248723,0.0774664,82636.0,82632.0,0.3608]
[1741550249032,0.051,82635.0,82610.0,0.3608]
[1741550249325,0.0605296,82620.0,82619.0,0.1210593]
[1741550249828,0.09768,82628.0,82619.0,0.1210593]
[1741550249829,0.00018145,82628.0,82627.0,0.1210476]
[1741550250129,0.14429395,82628.0,82627.0,0.1210476]
[1741550250627,0.14429395,82628.0,82625.0,0.1210494]
[1741550250628,0.1210505,82626.0,82625.0,0.1210494]
[1741550251025,0.1739505,82626.0,82625.0,0.1210494]
[1741550251325,0.2479169,82626.0,82625.0,0.1210494]
[1741550254628,0.2479169,82626.0,82625.0,0.1755494]
[1741550255329,0.2479169,82626.0,82625.0,0.12254038]
[1741550255719,0.2479169,82626.0,82625.0,0.17543844]
[1741550256420,0.1970169,82626.0,82625.0,0.17543844]
[1741550257030,0.0230664,82626.0,82625.0,0.17543844]
[1741550257433,0.1441154,82626.0,82625.0,0.17543844]
[1741550258631,0.1441154,82626.0,82625.0,0.22943844]
[1741550259232,0.1441154,82626.0,82625.0,0.19157787]
[1741550259936,0.1326664,82626.0,82625.0,0.19157787]
[1741550260129,0.0230664,82626.0,82625.0,0.19157787]
[1741550261325,0.0230664,82626.0,82625.0,0.13857164]
[1741550262231,0.01549501,82626.0,82625.0,0.13857164]
[1741550263529,0.13654401,82626.0,82625.0,0.13857164]
[1741550264027,0.13654401,82626.0,82625.0,0.11131215]
[1741550264635,0.13654401,82626.0,82625.0,0.16601215]
[1741550265435,0.18964401,82626.0,82625.0,0.16601215]
[1741550265734,0.18964401,82626.0,82625.0,0.1087]
[1741550265932,0.1210534,82623.0,82622.0,0.1210544]
[1741550266930,0.13654841,82623.0,82622.0,0.1210544]
[1741550267236,0.49734841,82623.0,82622.0,0.1210544]
[1741550267631,0.13654841,82623.0,82622.0,0.1210544]
[1741550267830,0.01549501,82623.0,82622.0,0.1210544]
[1741550269226,0.01549501,82623.0,82622.0,0.08319279]
[1741550270633,0.01549501,82623.0,82622.0,0.54151279]
[1741550270834,6e-08,82628.0,82627.0,0.1210476]
[1741550271136,6e-08,82628.0,82627.0,0.4818476]
[1741550272542,0.12104616,82628.0,82627.0,0.4818476]
[1741550274537,0.12104616,82628.0,82627.0,0.5363476]
[1741550275345,0.12104616,82628.0,82627.0,0.1755476]
[1741550275736,6e-08,82628.0,82627.0,0.1755476]
[1741550275932,0.12104616,82628.0,82627.0,0.1755476]
[1741550278845,6e-08,82628.0,82627.0,0.1755476]
[1741550279043,0.12104616,82628.0,82627.0,0.1755476]
[1741550279244,0.22924616,82628.0,82627.0,0.1755476]
[1741550279647,0.22924616,82628.0,82627.0,0.13768688]
[1741550280147,6e-08,82628.0,82627.0,0.13768688]
[1741550281854,0.10530006,82628.0,82627.0,0.13768688]
[1741550282938,0.10972799,82628.0,82627.0,0.13768688]
[1741550284052,0.00442799,82628.0,82627.0,0.13768688]
[1741550285358,9e-08,82628.0,82627.0,0.13768688]
[1741550286351,9e-08,82628.0,82627.0,0.28768688]
[1741550287851,4e-08,82636.0,82635.0,0.1210358]
[1741550288051,4e-08,82636.0,82635.0,0.5791958]
[1741550288754,4e-08,82636.0,82635.0,0.6852958]
[1741550290058,4e-08,82636.0,82635.0,0.64744645]
[1741550292752,0.0559,82647.0,82635.0,0.64744645]
[1741550292954,0.0559,82647.0,82646.0,0.4818197]
[1741550293760,0.0559,82647.0,82646.0,0.5859197]
[1741550295851,0.1769183,82647.0,82646.0,0.5859197]
[1741550296362,0.0559,82647.0,82646.0,0.59783959]
[1741550297061,0.0559,82647.0,82646.0,0.60670807]
[1741550297261,0.0559,82647.0,82646.0,0.24590807]
[1741550298059,0.1769183,82647.0,82646.0,0.24590807]
[1741550299153,0.1769183,82647.0,82646.0,0.19260807]
[1741550299663,0.12103,82640.0,82639.0,0.1210288]
[1741550299958,0.12549711,82640.0,82639.0,0.20420376]
[1741550300563,0.17809711,82640.0,82639.0,0.20420376]
[1741550301261,0.0526,82640.0,82639.0,0.20420376]
[1741550301475,0.1736285,82640.0,82639.0,0.31120376]
[1741550301859,0.0526,82640.0,82639.0,0.31120376]
[1741550302963,0.1736285,82640.0,82639.0,0.31120376]
[1741550303163,0.0526,82640.0,82639.0,0.31120376]
[1741550303862,0.1736285,82640.0,82639.0,0.31120376]
[1741550304659,0.0526,82640.0,82639.0,0.31120376]
[1741550306270,0.02941472,82655.0,82639.0,0.107]
[1741550306571,0.0545,82645.0,82644.0,0.1210227]
[1741550307271,0.0545,82645.0,82644.0,0.2240227]
[1741550307769,0.01787718,82658.0,82654.0,0.121008]
[1741550307971,0.1732048,82657.0,82654.0,0.121008]
[1741550308167,0.1210053,82656.0,82654.0,0.121008]
[1741550308570,0.05238145,82655.0,82654.0,0.172608]
[1741550308985,0.10438145,82655.0,82654.0,0.224008]
[1741550309172,0.10438145,82655.0,82654.0,0.23640525]
[1741550309468,0.22538805,82655.0,82654.0,0.224008]
[1741550310067,0.10438145,82655.0,82654.0,0.224008]
[1741550310467,0.22538805,82655.0,82654.0,0.172608]
[1741550310672,0.22538805,82655.0,82654.0,0.121008]
[1741550312470,0.10438145,82655.0,82654.0,0.121008]
[1741550314473,0.10438145,82655.0,82649.0,0.36965878]
[1741550314775,0.12103,82639.0,82638.0,0.00018145]
[1741550315773,0.12563241,82639.0,82634.0,0.32440463]
[1741550315968,0.1210358,82635.0,82634.0,0.32312463]
[1741550316565,0.13327322,82635.0,82634.0,0.2958668]
[1741550317872,0.13327322,82635.0,82634.0,0.4169041]
[1741550320382,0.13327322,82635.0,82634.0,0.4713041]
[1741550320581,0.13327322,82635.0,82634.0,0.1754373]
[1741550321479,0.1210417,82631.0,82630.0,0.1815631]
[1741550322073,0.13327912,82631.0,82630.0,0.1815631]
[1741550322276,0.13327912,82631.0,82630.0,0.0605213]
[1741550322474,0.1815682,82630.0,82629.0,0.1210446]
[1741550322777,0.1210461,82628.0,82627.0,0.1120232]
[1741550322976,0.1210461,82628.0,82627.0,0.1641232]
[1741550323173,0.1690221,82630.0,82626.0,0.00018145]
[1741550323377,0.1738476,82627.0,82626.0,0.00018145]
[1741550323685,0.18608502,82627.0,82626.0,0.12123045]
[1741550323883,0.18608502,82627.0,82626.0,0.00018145]
[1741550324674,0.19365785,82627.0,82619.0,0.05652295]
[1741550324876,0.060528,82622.0,82621.0,0.1210563]
[1741550325084,0.06810083,82622.0,82621.0,0.1210563]
[1741550325678,0.01223742,82622.0,82619.0,0.0542]
[1741550325879,0.2251563,82621.0,82620.0,0.1770563]
[1741550326076,0.2251563,82621.0,82620.0,0.5920563]
[1741550326277,0.2251563,82621.0,82620.0,0.1102]
[1741550326480,0.1815946,82618.0,82617.0,0.1210611]
[1741550326677,0.19383202,82618.0,82617.0,0.13739915]
[1741550327785,0.20140493,82618.0,82617.0,0.13739915]
[1741550328186,0.2089779,82618.0,82617.0,0.13739915]
[1741550328384,0.0273833,82618.0,82612.0,0.3608]
[1741550328692,0.1210769,82607.0,82606.0,0.0548]
[1741550328890,0.1210769,82607.0,82606.0,0.1758783]
[1741550328891,0.12864981,82607.0,82606.0,0.1758783]
[1741550329279,0.00757291,82607.0,82606.0,0.1758783]
[1741550329587,0.1484602,82607.0,82606.0,0.1758783]
[1741550329983,0.1484602,82607.0,82606.0,0.2284783]
[1741550330387,0.2027602,82607.0,82606.0,0.2284783]
[1741550331987,0.2027602,82607.0,82606.0,0.1736783]
[1741550332282,0.2027602,82607.0,82606.0,0.14819508]
[1741550333880,0.2027602,82607.0,82606.0,0.09559508]
[1741550335184,0.2027602,82607.0,82604.0,0.4758205]
[1741550335185,0.1210798,82605.0,82604.0,0.5363608]
[1741550335488,0.12865271,82605.0,82604.0,0.1742813]
[1741550336390,0.1484631,82605.0,82604.0,0.1742813]
[1741550336995,0.1484631,82605.0,82604.0,0.13641227]
[1741550338496,0.02738415,82605.0,82604.0,0.13641227]
[1741550339199,0.02738415,82605.0,82604.0,0.18781227]
[1741550340494,0.0273831,82605.0,82604.0,0.18781227]
[1741550340794,0.01223742,82605.0,82604.0,0.33781227]
[1741550343596,0.00018157,82615.0,82614.0,0.1210666]
[1741550343799,0.00018157,82615.0,82614.0,0.5788266]
[1741550344396,0.00018157,82615.0,82614.0,0.6310266]
[1741550344600,7e-08,82615.0,82614.0,0.7810266]
[1741550346092,0.6517442,82635.0,82634.0,0.1210373]
[1741550346286,0.13913933,82639.0,82634.0,0.1210373]
[1741550346287,0.01494857,82639.0,82638.0,0.1210314]
[1741550346512,0.00072,82641.0,82638.0,0.1210314]
[1741550346700,0.00072,82641.0,82637.0,0.0519]
[1741550346701,0.0517,82652.0,82651.0,0.1210124]
[1741550347201,0.1025,82652.0,82651.0,0.09376355]
[1741550347400,0.1025,82652.0,82651.0,0.05591806]
[1741550348804,0.1025,82652.0,82651.0,0.06789381]
[1741550349699,0.32570909,82653.0,82651.0,0.06789381]
[1741550349897,0.32570909,82653.0,82652.0,0.4818109]
[1741550350099,0.0522,82658.0,82657.0,0.1210036]
[1741550350497,0.00018157,82660.0,82657.0,0.1210036]
[1741550350498,0.00018157,82660.0,82657.0,0.2179236]
[1741550350697,0.00018157,82660.0,82659.0,0.4818007]
[1741550353608,0.00018157,82660.0,82659.0,0.3608]
[1741550353805,0.00018157,82660.0,82650.0,0.3608]
[1741550354026,0.00018157,82660.0,82657.0,0.1210007]
[1741550354027,0.2420095,82658.0,82657.0,0.1210007]
[1741550354505,0.1210124,82651.0,82650.0,0.5423196]
[1741550354911,0.1210124,82651.0,82650.0,0.55419362]
[1741550355106,0.1210124,82651.0,82650.0,0.43318072]
[1741550355611,0.2297124,82651.0,82650.0,0.3608]
[1741550355808,0.23418799,82651.0,82650.0,0.3608]
[1741550356016,0.23418799,82651.0,82650.0,0.4818139]
[1741550357113,0.11317559,82651.0,82649.0,0.1210142]
[1741550357309,0.1210139,82650.0,82649.0,0.1210142]
[1741550357608,0.1210153,82649.0,82648.0,0.25443937]
[1741550357803,0.2306153,82649.0,82648.0,0.25443937]
[1741550358202,0.1096,82649.0,82643.0,0.00018157]
[1741550358510,0.1210227,82644.0,82643.0,0.12120567]
[1741550359014,0.12549829,82644.0,82643.0,0.12120567]
[1741550359415,0.23719829,82644.0,82643.0,0.12120567]
[1741550360410,0.23719829,82644.0,82643.0,0.00018157]
[1741550361320,0.121027,82641.0,82640.0,0.00021609]
[1741550361711,0.1210417,82631.0,82630.0,0.0605209]
[1741550362211,0.12551729,82631.0,82630.0,0.0605209]
[1741550362616,0.12551729,82631.0,82630.0,0.07235693]
[1741550363711,0.23081729,82631.0,82630.0,0.07235693]
[1741550364221,0.1210461,82630.0,82629.0,0.1210432]
[1741550364518,0.12552169,82630.0,82629.0,0.1210432]
[1741550364717,0.23122169,82630.0,82629.0,0.1210432]
[1741550365513,0.11017559,82630.0,82629.0,0.1210432]
[1741550366215,0.23121879,82630.0,82629.0,0.1210432]
[1741550368622,0.1815793,82625.0,82624.0,0.1210465]
[1741550368815,0.0605259,82625.0,82624.0,0.13326928]
[1741550369218,0.06500149,82625.0,82624.0,0.13326928]
[1741550369417,0.17160149,82625.0,82624.0,0.18736928]
[1741550369626,0.17160149,82625.0,82624.0,0.13326928]
[1741550371922,0.11107559,82625.0,82624.0,0.13326928]
[1741550372119,0.3608,82645.0,82638.0,0.1210314]
[1741550372324,0.0968,82650.0,82638.0,0.1210314]
[1741550372527,0.1210198,82646.0,82638.0,0.1210314]
[1741550372723,0.0605093,82647.0,82638.0,0.4818314]
[1741550373326,0.0968,82653.0,82638.0,0.4818314]
[1741550373530,0.1210223,82645.0,82638.0,0.4818314]
[1741550373723,0.1210242,82643.0,82638.0,0.4818314]
[1741550373920,0.121027,82642.0,82638.0,0.4818314]
[1741550374922,0.1210244,82643.0,82638.0,0.4818314]
[1741550375216,0.00765568,82639.0,82638.0,0.45457872]
[1741550375429,0.00018157,82639.0,82638.0,0.45457872]
[1741550376323,0.1217985,82661.0,82638.0,0.5108]
[1741550376541,0.01368044,82661.0,82655.0,0.1210066]
[1741550376826,0.1209915,82666.0,82655.0,0.1210066]
[1741550377026,0.1066,82667.0,82655.0,0.1210066]
[1741550377234,0.11145192,82659.0,82655.0,0.13330503]
[1741550377435,0.0536,82658.0,82655.0,0.24110503]
[1741550377624,0.00931237,82656.0,82655.0,0.24110503]
[1741550378131,0.13031747,82656.0,82655.0,0.24110503]
[1741550378321,0.12850182,82656.0,82655.0,0.2288066]
[1741550378522,0.12850182,82656.0,82655.0,0.1771066]
[1741550379325,0.23490182,82656.0,82655.0,0.1771066]
[1741550379526,0.11389672,82656.0,82655.0,0.09534842]
[1741550380122,0.00749672,82656.0,82655.0,0.20464842]
[1741550381030,0.0543,82658.0,82655.0,0.32565502]
[1741550381223,0.0543,82658.0,82657.0,0.1210036]
[1741550382735,0.0543,82658.0,82657.0,0.4818036]
[1741550384531,0.05878596,82658.0,82657.0,0.4818036]
[1741550384736,0.17978816,82658.0,82657.0,0.4818036]
[1741550385137,0.17978816,82658.0,82657.0,0.1210036]
[1741550390137,0.17978816,82658.0,82657.0,0.13505695]
[1741550390732,0.00448596,82658.0,82657.0,0.49585695]
[1741550390932,0.00448596,82658.0,82657.0,0.54765695]
[1741550391441,0.00448596,82658.0,82657.0,0.64433695]
[1741550392729,0.04399967,82660.0,82657.0,0.79433695]
[1741550392933,0.32565245,82665.0,82657.0,0.79433695]
[1741550392934,0.21378872,82665.0,82663.0,0.1209948]
[1741550393238,0.21378872,82665.0,82664.0,0.1767934]
[1741550393435,0.21378872,82665.0,82664.0,0.3797934]
[1741550394040,0.36014934,82675.0,82674.0,0.1209787]
[1741550394336,0.36014934,82675.0,82674.0,0.2176187]
[1741550394842,0.36014934,82675.0,82674.0,0.3239187]
[1741550395332,0.36014934,82675.0,82674.0,0.6847187]
[1741550398834,0.11145192,82684.0,82674.0,0.6847187]
[1741550398835,2e-08,82684.0,82674.0,0.56374]
[1741550399044,0.00072,82709.0,82683.0,0.4817656]
[1741550399045,0.09977268,82689.0,82683.0,0.4817656]
[1741550399237,0.09977268,82689.0,82688.0,0.1209583]
[1741550399741,0.0512,82700.0,82699.0,0.1209422]
[1741550399934,0.0512,82700.0,82699.0,0.4817422]
[1741550400635,0.0512,82700.0,82699.0,0.6409422]
[1741550401038,0.0512,82700.0,82699.0,0.60311861]
[1741550401239,0.0512,82700.0,82699.0,0.51050879]
[1741550403448,0.0512,82700.0,82692.0,0.3608]
[1741550403638,0.1209509,82693.0,82692.0,0.3608]
[1741550403837,0.1209524,82692.0,82676.0,0.09656]
[1741550404149,0.1209524,82692.0,82691.0,4.312e-05]
[1741550404445,0.1651754,82694.0,82693.0,0.1209509]
[1741550404446,0.1047,82694.0,82693.0,0.1209509]
[1741550404637,0.0538,82694.0,82693.0,0.1209509]
[1741550404840,0.17918668,82694.0,82693.0,0.1209509]
[1741550405042,0.05823718,82694.0,82691.0,0.00132312]
[1741550405243,0.0604801,82687.0,82665.0,0.1039]
[1741550405443,0.1209641,82684.0,82682.0,0.1209667]
[1741550405645,0.1209641,82684.0,82678.0,0.0604858]
[1741550405848,0.1209641,82684.0,82683.0,0.4817656]
[1741550406352,0.12540128,82684.0,82683.0,0.3608]
[1741550406944,0.00443718,82684.0,82683.0,0.4817656]
[1741550407651,8e-08,82684.0,82683.0,0.4817656]
[1741550407859,8e-08,82684.0,82683.0,0.5867656]
[1741550408950,0.0514,82691.0,82683.0,0.4658]
[1741550409140,0.0514,82691.0,82690.0,0.1209553]
[1741550410158,0.0514,82691.0,82690.0,0.2266553]
[1741550411648,0.4113,82701.0,82690.0,0.5874553]
[1741550411848,0.01333643,82702.0,82701.0,0.1209392]
[1741550412050,0.01333643,82702.0,82701.0,0.2174192]
[1741550412445,0.0514,82707.0,82706.0,0.1209319]
[1741550412953,0.0514,82707.0,82701.0,0.33055575]
[1741550412954,0.0514,82707.0,82701.0,0.10841655]
[1741550413158,0.1209378,82703.0,82702.0,0.1209369]
[1741550413653,0.2253378,82703.0,82702.0,0.1209369]
[1741550413842,0.1044,82703.0,82702.0,0.1209369]
[1741550414351,0.1044,82703.0,82702.0,0.08311326]
[1741550414550,0.2253363,82703.0,82702.0,0.08311326]
[1741550414949,0.1209378,82702.0,82701.0,0.09648]
[1741550415140,0.1209378,82702.0,82701.0,0.2174192]
[1741550415349,0.1739378,82702.0,82701.0,0.2174192]
[1741550415541,0.1209392,82701.0,82700.0,0.13307075]
[1741550415943,0.053,82702.0,82701.0,0.1209392]
[1741550416351,0.04078755,82725.0,82701.0,0.1209392]
[1741550416352,0.0526,82714.0,82707.0,0.1209305]
[1741550416545,0.053,82713.0,82707.0,0.2174105]
[1741550417258,0.05118145,82713.0,82712.0,0.1209232]
[1741550417451,0.05118145,82713.0,82712.0,0.4817232]
[1741550417849,0.1734093,82722.0,82721.0,0.12091]
[1741550418054,0.1734093,82722.0,82721.0,0.05283636]
[1741550419359,0.0525,82722.0,82721.0,0.05283636]
[1741550419560,0.0525,82722.0,82721.0,0.10583636]
[1741550419761,0.0570229,82722.0,82721.0,0.10583636]
[1741550420054,0.0570229,82722.0,82721.0,0.11812763]
[1741550420256,0.1103229,82722.0,82721.0,0.11812763]
[1741550420455,0.1173229,82722.0,82721.0,0.11812763]
[1741550421058,0.0648229,82722.0,82721.0,0.11812763]
[1741550421656,0.00018134,82730.0,82729.0,0.1208983]
[1741550421959,0.00018134,82730.0,82729.0,0.2173383]
[1741550422366,0.00018134,82730.0,82729.0,0.2695383]
[1741550422657,0.00018134,82730.0,82729.0,0.3229383]
[1741550422849,0.00018134,82730.0,82729.0,0.6837383]
[1741550423058,0.00618134,82730.0,82729.0,0.6837383]
[1741550423563,0.12707824,82730.0,82729.0,0.6837383]
[1741550423753,0.12707824,82730.0,82729.0,0.3229383]
[1741550423956,0.00618134,82730.0,82729.0,0.3228983]
[1741550424259,0.00618134,82730.0,82729.0,0.2264983]
[1741550424455,0.12507824,82730.0,82729.0,0.2694983]
[1741550424663,0.17637824,82730.0,82729.0,0.0964]
[1741550424859,0.23243675,82730.0,82729.0,0.2172983]
[1741550425161,0.23243675,82730.0,82729.0,0.15226139]
[1741550425351,0.23243675,82730.0,82729.0,0.03136309]
[1741550425552,0.23243675,82730.0,82729.0,0.15226139]
[1741550425754,0.22487824,82730.0,82729.0,0.15226139]
[1741550425954,0.05148134,82730.0,82729.0,0.15226139]
[1741550426258,0.05548134,82730.0,82729.0,0.15226139]
[1741550426464,0.05548134,82730.0,82729.0,0.25106139]
[1741550426660,0.17637824,82730.0,82729.0,0.20256139]
[1741550427859,0.18378661,82730.0,82729.0,0.20256139]
[1741550428265,0.1209085,82723.0,82722.0,0.1209043]
[1741550428557,0.1209085,82723.0,82722.0,0.1209085]
[1741550428760,0.12831687,82723.0,82722.0,0.1209085]
[1741550428958,0.22881687,82723.0,82722.0,0.1702085]
[1741550430166,0.22881687,82723.0,82722.0,0.0493]
[1741550430167,0.22981687,82723.0,82722.0,0.0493]
[1741550430461,0.0604559,82720.0,82710.0,0.422623]
[1741550430769,0.1209202,82714.0,82713.0,0.18155444]
[1741550431068,0.1209182,82716.0,82715.0,0.1209173]
[1741550431261,0.1712182,82716.0,82715.0,0.1209173]
[1741550431462,0.17862657,82716.0,82715.0,0.1209173]
[1741550431667,0.17862657,82716.0,82715.0,0.05284103]
[1741550432053,0.1209202,82714.0,82713.0,0.00018134]
[1741550432254,0.1209202,82714.0,82713.0,0.12110304]
[1741550432457,0.12832857,82714.0,82713.0,0.00218134]
[1741550432657,0.17862857,82714.0,82713.0,0.00218134]
[1741550432857,0.1712202,82714.0,82713.0,0.00218134]
[1741550433256,0.1712202,82714.0,82713.0,0.00018134]
[1741550433460,0.1712202,82714.0,82713.0,0.12110304]
[1741550434067,0.17580006,82714.0,82713.0,0.17070304]
[1741550434762,0.00457986,82714.0,82713.0,0.17070304]
[1741550435161,0.00457986,82714.0,82713.0,0.62782304]
[1741550435667,0.00457986,82714.0,82713.0,0.59000798]
[1741550436663,0.09041809,82719.0,82718.0,0.1209144]
[1741550436862,0.11134072,82729.0,82728.0,0.1208998]
[1741550437171,0.11134072,82729.0,82728.0,0.5780198]
[1741550437563,0.0516,82744.0,82729.0,0.1208983]
[1741550437763,0.120878,82743.0,82729.0,0.1208983]
[1741550437962,0.120878,82743.0,82729.0,0.1711983]
[1741550438161,0.0516,82744.0,82729.0,0.1711983]
[1741550438365,0.1208768,82744.0,82729.0,0.1711983]
[1741550438658,0.32480036,82745.0,82729.0,0.1711983]
[1741550439064,0.32480036,82745.0,82744.0,0.1208764]
[1741550439263,0.32480036,82745.0,82744.0,0.4816764]
[1741550439673,0.32480036,82745.0,82744.0,0.8424764]
[1741550439981,0.32480036,82745.0,82744.0,0.8927764]
[1741550440567,0.32980036,82745.0,82744.0,0.8937764]
[1741550440868,0.28007619,82751.0,82750.0,0.1208676]
[1741550441171,0.13010075,82764.0,82759.0,0.1208545]
[1741550441472,0.1208382,82771.0,82764.0,0.1208472]
[1741550441473,0.11132095,82765.0,82764.0,0.1208472]
[1741550442959,0.11132095,82765.0,82763.0,0.0517]
[1741550443270,0.11132095,82765.0,82759.0,0.45836]
[1741550443271,0.120853,82760.0,82759.0,0.09628]
[1741550443463,0.1208574,82757.0,82753.0,0.09628]
[1741550443775,0.1208662,82751.0,82750.0,0.001]
[1741550444082,0.1208793,82742.0,82741.0,0.12269182]
[1741550444471,0.1208793,82742.0,82741.0,0.00181282]
[1741550444774,0.1208793,82742.0,82741.0,0.12269362]
[1741550444971,0.0496,82742.0,82741.0,0.17479362]
[1741550445171,0.1704793,82742.0,82741.0,0.17479362]
[1741550445475,0.1704793,82742.0,82741.0,0.00181282]
[1741550445666,0.2198793,82742.0,82741.0,0.00181282]
[1741550445862,0.2716793,82742.0,82741.0,0.12269362]
[1741550446065,0.2716793,82742.0,82741.0,0.00181282]
[1741550446971,0.2716793,82742.0,82741.0,0.00381282]
[1741550447170,0.2716793,82742.0,82741.0,0.12469362]
[1741550447365,0.1508,82742.0,82741.0,0.12469362]
[1741550447566,0.1014,82742.0,82741.0,0.48549362]
[1741550447763,0.09642134,82750.0,82749.0,0.1208691]
[1741550448066,0.00905797,82750.0,82749.0,0.1208691]
[1741550448575,0.00018134,82750.0,82749.0,0.1208691]
[1741550448876,0.00018134,82750.0,82749.0,0.4816691]
[1741550449078,0.17384894,82750.0,82749.0,0.4816691]
[1741550449275,0.22544894,82750.0,82749.0,0.5872691]
[1741550450165,0.00018134,82750.0,82749.0,0.5872691]
[1741550450370,0.00018134,82750.0,82749.0,0.6011198]
[1741550450767,0.3608,82762.0,82749.0,0.6011198]
[1741550450768,0.3608,82762.0,82749.0,0.4802507]
[1741550451068,0.01221497,82768.0,82761.0,0.0604255]
[1741550451264,0.01221497,82768.0,82767.0,0.4816428]
[1741550451471,0.1208404,82769.0,82768.0,0.1208413]
[1741550451472,0.12969797,82769.0,82768.0,0.1208413]
[1741550451871,0.17789797,82769.0,82768.0,0.2260413]
[1741550452274,0.17789797,82769.0,82767.0,0.00136]
[1741550452479,0.1208457,82765.0,82764.0,0.1812661]
[1741550452669,0.1208457,82765.0,82764.0,0.17539217]
[1741550454884,0.1208457,82765.0,82764.0,0.1128233]
[1741550455174,0.11747757,82769.0,82764.0,0.1128233]
[1741550455175,0.1532421,82768.0,82767.0,0.1208428]
[1741550455371,0.1208421,82768.0,82767.0,0.1208428]
[1741550455967,0.05705757,82769.0,82767.0,0.1208428]
[1741550456167,0.0482,82769.0,82768.0,0.1208413]
[1741550456369,0.1208313,82775.0,82774.0,0.1208311]
[1741550456581,0.0325,82775.0,82774.0,0.05280239]
[1741550456780,0.0325,82775.0,82773.0,0.0604163]
[1741550456983,0.00018134,82777.0,82776.0,0.1208297]
[1741550457276,0.00018134,82777.0,82776.0,0.1516297]
[1741550457579,0.00018134,82777.0,82776.0,0.5124297]
[1741550458369,0.4212014,82795.0,82776.0,0.40358742]
[1741550458570,0.0314,82794.0,82787.0,0.1208136]
[1741550458774,0.0604039,82791.0,82787.0,0.1208136]
[1741550459074,0.0314,82794.0,82787.0,0.1208136]
[1741550459274,0.1,82800.0,82787.0,0.4816136]
[1741550459569,0.1,82800.0,82795.0,0.1208019]
[1741550459570,0.00018122,82796.0,82795.0,0.1208019]
[1741550460276,0.00018122,82796.0,82795.0,0.4816019]
[1741550460470,0.12098172,82796.0,82795.0,0.3608]
[1741550460671,0.1208122,82788.0,82787.0,0.002]
[1741550460879,0.1208122,82788.0,82787.0,0.001]
[1741550461079,0.3659322,82788.0,82787.0,0.001]
[1741550461276,0.1208238,82780.0,82760.0,0.3608]
[1741550461473,0.4816238,82780.0,82760.0,0.3608]
[1741550461677,0.49385601,82780.0,82772.0,0.1208344]
[1741550461879,0.49385601,82780.0,82773.0,0.1226454]
[1741550462078,0.52675601,82780.0,82773.0,0.0018121]
[1741550462276,0.120872,82749.0,82748.0,0.181298]
[1741550462477,0.3608,82756.0,82755.0,0.1208603]
[1741550462786,0.3598,82756.0,82755.0,0.1208603]
[1741550462982,0.0329,82765.0,82763.0,0.1208472]
[1741550463178,0.01221497,82767.0,82764.0,0.3919]
[1741550463380,0.3608,82769.0,82760.0,0.0604263]
[1741550463584,0.1208574,82757.0,82756.0,0.12104012]